bitfinex/quotes_BTCUSD_20260127
["timestamp","ask_amount","ask_price","bid_price","bid_amount"]
[1769538792699,0.03,87929.0,87913.0,0.17909306]
[1769538792889,0.03,87929.0,87913.0,0.17080164]
[1769538793053,0.08686441,87929.0,87913.0,0.16950124]
[1769538793268,0.03,87927.0,87913.0,0.185775]
[1769538793588,0.03,87927.0,87913.0,0.18040508]
[1769538793766,0.03,87927.0,87913.0,0.17584838]
[1769538793963,0.03,87927.0,87913.0,0.16771238]
[1769538794186,0.03,87927.0,87913.0,0.16607808]
[1769538794334,0.08686541,87927.0,87913.0,0.16113567]
[1769538794533,0.03,87926.0,87916.0,0.19257986]
[1769538794737,0.03,87926.0,87916.0,0.2169853]
[1769538794943,0.03,87926.0,87907.0,0.19257986]
[1769538795196,0.03,87926.0,87909.0,0.19257986]
[1769538795358,0.03,87926.0,87911.0,0.19257986]
[1769538795562,0.03,87925.0,87913.0,0.19257986]
[1769538796407,0.15913738,87944.0,87918.0,0.19257986]
[1769538796618,0.15913738,87944.0,87917.0,0.02440544]
[1769538796619,0.03,87942.0,87923.0,0.19257986]
[1769538796889,0.27221498,87950.0,87931.0,0.02440544]
[1769538797102,0.27221498,87950.0,87924.0,0.01161856]
[1769538797103,0.27221498,87950.0,87933.0,0.19257986]
[1769538797304,0.05685228,87948.0,87933.0,0.19257986]
[1769538797515,0.20230225,87949.0,87933.0,0.19257986]
[1769538797726,0.23230225,87941.0,87924.0,0.11688]
[1769538797946,0.03,87933.0,87924.0,0.11688]
[1769538798153,0.23606731,87928.0,87908.0,0.11688]
[1769538798358,0.02309973,87927.0,87908.0,0.32114786]
[1769538798574,0.02309973,87927.0,87909.0,0.19257986]
[1769538798780,0.03,87926.0,87911.0,0.19257986]
[1769538798983,0.03,87926.0,87911.0,0.2169853]
[1769538800041,0.03,87925.0,87912.0,0.02440544]
[1769538800269,0.03,87925.0,87916.0,0.02440544]
[1769538800473,0.02309973,87936.0,87919.0,0.19257986]
[1769538800688,0.17920252,87939.0,87919.0,0.19257986]
[1769538800895,0.27221498,87940.0,87923.0,0.19257986]
[1769538801095,0.03,87939.0,87923.0,0.2169853]
[1769538801435,0.03,87939.0,87924.0,0.02440544]
[1769538801634,0.03,87939.0,87925.0,0.2169853]
[1769538802951,0.03,87938.0,87928.0,0.0246744]
[1769538803134,0.03,87938.0,87929.0,0.20473875]
[1769538803974,0.03,87937.0,87929.0,0.0246744]
[1769538804385,0.02441189,87948.0,87929.0,0.0246744]
[1769538804624,0.02420569,87956.0,87934.0,0.17258369]
[1769538804822,0.02420569,87956.0,87937.0,0.02472334]
[1769538805112,0.03,87953.0,87937.0,0.19730703]
[1769538805283,0.22445926,87953.0,87937.0,0.19730703]
[1769538807605,0.22445926,87951.0,87930.0,0.19730703]
[1769538807812,0.22445926,87951.0,87931.0,0.02472334]
[1769538807986,0.03,87949.0,87932.0,0.17258369]
[1769538808799,0.03,87949.0,87933.0,0.19730703]
[1769538810427,0.03,87947.0,87933.0,0.02472334]
[1769538810630,0.27221498,87950.0,87929.0,0.11688]
[1769538810631,0.03,87945.0,87929.0,0.11688]
[1769538810841,0.03,87945.0,87929.0,0.11801777]
[1769538811049,0.03,87945.0,87929.0,0.29060146]
[1769538811288,0.03,87945.0,87930.0,0.17258369]
[1769538811732,0.03,87944.0,87930.0,0.19730703]
[1769538812272,0.05420569,87937.0,87929.0,0.11684]
[1769538812458,0.03,87935.0,87929.0,0.10684]
[1769538814617,0.17025357,87936.0,87929.0,0.10684]
[1769538814618,0.03,87934.0,87929.0,0.10684]
[1769538814820,0.17025357,87957.0,87935.0,0.17258369]
[1769538815026,0.17025357,87954.0,87936.0,0.02472334]
[1769538815251,0.11350988,87953.0,87936.0,0.02472334]
[1769538815431,0.11350988,87952.0,87936.0,0.02472334]
[1769538815748,0.17025357,87954.0,87936.0,0.02472334]
[1769538815749,0.03,87950.0,87936.0,0.02472334]
[1769538815951,0.03,87948.0,87936.0,0.02472334]
[1769538816112,0.03,87948.0,87929.0,0.10684]
[1769538816294,0.20025357,87948.0,87929.0,0.10684]
[1769538816499,0.20025357,87948.0,87929.0,0.13156334]
[1769538816735,0.31492497,87950.0,87929.0,0.10684]
[1769538816937,0.17025357,87949.0,87930.0,0.02472334]
[1769538818106,0.2271047,87949.0,87930.0,0.02472334]
[1769538818326,0.1135351,87948.0,87930.0,0.02472334]
[1769538818530,0.03,87946.0,87930.0,0.02472334]
[1769538819561,0.03,87948.0,87930.0,0.02472334]
[1769538819761,0.03,87946.0,87930.0,0.02472334]
[1769538820658,0.03,87946.0,87922.0,0.02481094]
[1769538820659,0.03,87937.0,87922.0,0.02481094]
[1769538820975,0.03,87935.0,87922.0,0.02481094]
[1769538821175,0.05131193,87937.0,87922.0,0.02481094]
[1769538821344,0.03,87940.0,87922.0,8.76e-05]
[1769538821539,0.03,87936.0,87922.0,8.76e-05]
[1769538821815,0.27210467,87940.0,87922.0,8.76e-05]
[1769538821816,0.20025357,87932.0,87922.0,8.76e-05]
[1769538822025,0.03,87930.0,87922.0,8.76e-05]
[1769538822338,0.27210467,87932.0,87922.0,8.76e-05]
[1769538822339,0.22445926,87928.0,87922.0,8.76e-05]
[1769538822887,0.05420569,87923.0,87922.0,8.76e-05]
[1769538823114,0.05420569,87923.0,87886.0,0.04091676]
[1769538823115,0.17025357,87917.0,87894.0,0.02512334]
[1769538823314,0.17025357,87917.0,87908.0,2.153e-05]
[1769538823315,0.08107888,87915.0,87908.0,2.153e-05]
[1769538823515,0.02420569,87915.0,87908.0,2.153e-05]
[1769538824121,0.08107912,87915.0,87908.0,2.153e-05]
[1769538824575,0.03,87913.0,87908.0,2.153e-05]
[1769538825530,0.03,87912.0,87908.0,2.153e-05]
[1769538826738,0.03,87911.0,87908.0,2.153e-05]
[1769538827735,0.03,87913.0,87908.0,2.153e-05]
[1769538828945,0.03,87915.0,87908.0,2.153e-05]
[1769538829151,0.08687317,87915.0,87908.0,2.153e-05]
[1769538829344,0.08687341,87915.0,87908.0,2.153e-05]
[1769538829513,0.08687447,87913.0,87908.0,2.153e-05]
[1769538829717,0.05420569,87913.0,87908.0,2.153e-05]
[1769538830889,0.03,87913.0,87908.0,2.153e-05]
[1769538831093,0.03,87912.0,87908.0,2.153e-05]
[1769538831441,0.22748389,87919.0,87908.0,2.153e-05]
[1769538831442,0.03,87910.0,87908.0,2.153e-05]
[1769538831642,0.03,87908.0,87894.0,0.17298369]
[1769538831840,0.08687794,87908.0,87894.0,0.17298369]
[1769538832045,0.03,87908.0,87894.0,0.17298369]
[1769538832243,0.08687768,87908.0,87894.0,0.0004]
[1769538832450,0.03,87908.0,87894.0,0.0004]
[1769538832671,0.03,87907.0,87894.0,0.0004]
[1769538832875,0.03,87905.0,87894.0,0.0004]
[1769538833087,0.05534403,87906.0,87874.0,0.02472334]
[1769538833088,0.03,87893.0,87874.0,0.02472334]
[1769538833283,0.11688,87906.0,87869.0,0.19730703]
[1769538833284,0.22445926,87889.0,87869.0,0.19730703]
[1769538833608,0.27210467,87900.0,87880.0,0.02472334]
[1769538833825,0.27210467,87900.0,87885.0,0.19730703]
[1769538833969,0.22714067,87894.0,87876.0,0.02472334]
[1769538834225,0.27210467,87892.0,87876.0,0.02472334]
[1769538834410,0.27210467,87892.0,87868.0,0.02471603]
[1769538834411,0.03,87885.0,87868.0,0.02471603]
[1769538834857,0.0868948,87882.0,87868.0,0.02471603]
[1769538835073,0.03,87879.0,87868.0,0.0004]
[1769538836056,0.03,87878.0,87868.0,0.0004]
[1769538836958,0.03,87877.0,87868.0,0.0004]
[1769538837158,0.08689914,87875.0,87856.0,0.0003231]
[1769538837326,0.03,87873.0,87856.0,0.0003231]
[1769538837865,0.22096481,87873.0,87857.0,0.186784]
[1769538838069,0.03,87873.0,87857.0,0.16246797]
[1769538838292,0.03,87872.0,87861.0,0.16246797]
[1769538838492,0.03,87872.0,87861.0,0.186784]
[1769538839098,0.03,87872.0,87861.0,0.02431603]
[1769538839301,0.03,87876.0,87861.0,0.02431603]
[1769538840449,0.02301622,87889.0,87864.0,0.16246797]
[1769538840636,0.02301622,87889.0,87867.0,0.02431603]
[1769538840813,0.02301622,87889.0,87856.0,0.0003231]
[1769538840814,0.02301622,87889.0,87871.0,0.02431603]
[1769538841019,0.16794859,87888.0,87871.0,0.02431603]
[1769538841426,0.03,87887.0,87871.0,0.02431603]
[1769538841629,0.03,87887.0,87857.0,0.16246797]
[1769538841630,0.03,87877.0,87857.0,0.16246797]
[1769538841867,0.02205463,87892.0,87857.0,0.16246797]
[1769538841868,0.03,87872.0,87857.0,0.16246797]
[1769538842249,0.03,87872.0,87858.0,0.02431603]
[1769538842451,0.03,87872.0,87859.0,0.02431603]
[1769538842859,0.03,87871.0,87859.0,0.02431603]
[1769538843794,0.03,87870.0,87859.0,0.02431603]
[1769538844778,0.03,87869.0,87859.0,0.02431603]
[1769538845775,0.03,87874.0,87859.0,0.186784]
[1769538845974,0.19096481,87875.0,87859.0,0.186784]
[1769538845975,0.03,87868.0,87859.0,0.186784]
[1769538846183,0.34065201,87900.0,87860.0,0.16246797]
[1769538846396,0.16794859,87887.0,87864.0,0.16246797]
[1769538846598,0.18009897,87887.0,87865.0,0.02431603]
[1769538846838,0.16794859,87886.0,87865.0,0.02431603]
[1769538847048,0.03,87883.0,87865.0,0.02431603]
[1769538847249,0.03,87883.0,87865.0,0.03648187]
[1769538847397,0.03,87883.0,87865.0,0.16246797]
[1769538847580,0.19794859,87883.0,87866.0,0.02431603]
[1769538850540,0.03,87882.0,87868.0,0.02431603]
[1769538850740,0.03,87878.0,87858.0,0.02431603]
[1769538850939,0.19794859,87876.0,87858.0,0.02431603]
[1769538851680,0.03,87876.0,87858.0,0.16246797]
[1769538851898,0.03,87875.0,87861.0,0.02431603]
[1769538852104,0.03,87875.0,87862.0,0.02431603]
[1769538852911,0.03,87881.0,87862.0,0.02431603]
[1769538853150,0.20560167,87879.0,87862.0,0.02431603]
[1769538853779,0.03,87877.0,87862.0,0.02431603]
[1769538853976,0.19794859,87877.0,87862.0,0.02431603]
[1769538854368,0.19794859,87877.0,87856.0,0.0003231]
[1769538854570,0.19794859,87873.0,87856.0,0.0003231]
[1769538855263,0.03,87873.0,87857.0,0.16246797]
[1769538855629,0.19794859,87873.0,87856.0,0.0003231]
[1769538855831,0.05301622,87873.0,87856.0,0.0003231]
[1769538855997,0.03,87871.0,87856.0,0.0003231]
[1769538856619,0.19794859,87869.0,87856.0,0.0003231]
[1769538858437,0.03,87869.0,87856.0,0.02463913]
[1769538858632,0.03,87869.0,87857.0,0.02431603]
[1769538858850,0.03,87868.0,87857.0,0.02431603]
[1769538859675,0.03,87875.0,87857.0,0.02431603]
[1769538859923,0.03,87873.0,87857.0,0.186784]
[1769538860141,0.19794859,87873.0,87857.0,0.02431603]
[1769538860573,0.22758061,87881.0,87856.0,0.16279107]
[1769538860574,0.03,87871.0,87859.0,0.02431603]
[1769538860715,0.03,87871.0,87863.0,0.16246797]
[1769538860925,0.09043896,87886.0,87866.0,0.02431603]
[1769538860926,0.02301622,87886.0,87866.0,0.02431603]
[1769538861129,0.11692,87889.0,87856.0,0.0003231]
[1769538861130,0.03,87867.0,87856.0,0.0003231]
[1769538861449,0.03,87867.0,87848.0,0.000684]
[1769538861450,0.19794859,87858.0,87848.0,0.000684]
[1769538861803,0.03,87856.0,87848.0,0.000684]
[1769538861990,0.03,87853.0,87848.0,0.000342]
[1769538863002,0.03,87852.0,87848.0,0.000342]
[1769538863233,0.07984716,87860.0,87846.0,0.00018559]
[1769538863431,0.11379173,87859.0,87846.0,0.00018559]
[1769538863709,0.11379173,87858.0,87846.0,0.00018559]
[1769538863948,0.11379173,87857.0,87846.0,0.00018559]
[1769538864168,0.13675648,87860.0,87846.0,0.00018559]
[1769538864169,0.03,87855.0,87846.0,0.00018559]
[1769538864350,0.03,87849.0,87846.0,0.00018559]
[1769538864525,0.03,87847.0,87843.0,0.0004]
[1769538864689,0.03,87847.0,87831.0,0.000684]
[1769538864893,0.18909832,87845.0,87831.0,0.000684]
[1769538865096,0.03,87840.0,87831.0,0.000684]
[1769538865970,0.03,87840.0,87833.0,0.16445887]
[1769538866176,0.03,87839.0,87834.0,0.16445887]
[1769538866385,0.03,87839.0,87834.0,0.18876093]
[1769538866594,0.03,87839.0,87835.0,0.02430206]
[1769538866824,0.03,87839.0,87821.0,0.00065789]
[1769538866825,0.18909832,87839.0,87822.0,0.02430206]
[1769538867039,0.02295362,87840.0,87822.0,0.02430206]
[1769538867040,0.03,87837.0,87822.0,0.02430206]
[1769538867247,0.03,87835.0,87822.0,0.02430206]
[1769538867923,0.03,87835.0,87821.0,0.0004]
[1769538868141,0.27261248,87831.0,87821.0,0.0004]
[1769538868416,0.15909832,87829.0,87821.0,0.00024284]
[1769538868620,0.03,87824.0,87821.0,0.00024284]
[1769538868828,0.18909832,87824.0,87821.0,8.569e-05]
[1769538869302,0.13477018,87857.0,87822.0,0.16445887]
[1769538869303,0.04846644,87838.0,87822.0,0.16445887]
[1769538869513,0.04846644,87838.0,87821.0,8.569e-05]
[1769538869514,0.15909832,87849.0,87826.0,0.16430173]
[1769538869723,0.15909832,87849.0,87821.0,8.569e-05]
[1769538869724,0.14347951,87848.0,87829.0,0.02430206]
[1769538869879,0.03,87846.0,87829.0,0.02414494]
[1769538870079,0.03,87844.0,87829.0,0.02414494]
[1769538871088,0.03,87843.0,87829.0,0.02414494]
[1769538871292,0.03,87843.0,87830.0,0.16445887]
[1769538872195,0.21601581,87847.0,87829.0,0.02414494]
[1769538872196,0.03,87842.0,87829.0,0.02414494]
[1769538872383,0.03,87842.0,87829.0,0.02398782]
[1769538872763,0.03,87840.0,87829.0,0.02398782]
[1769538872964,0.03,87837.0,87829.0,0.0236736]
[1769538873210,0.03,87837.0,87824.0,0.16445887]
[1769538873347,0.03,87837.0,87824.0,0.16414463]
[1769538873952,0.03,87836.0,87824.0,0.18844669]
[1769538874156,0.03,87836.0,87825.0,0.02430206]
[1769538874362,0.03,87836.0,87821.0,8.569e-05]
[1769538874363,0.21030351,87836.0,87821.0,8.569e-05]
[1769538874581,0.18909832,87836.0,87821.0,8.569e-05]
[1769538874790,0.03,87836.0,87822.0,0.02430206]
[1769538874990,0.03,87835.0,87824.0,0.16445887]
[1769538875193,0.03,87835.0,87821.0,8.569e-05]
[1769538875194,0.18205194,87849.0,87827.0,0.02430206]
[1769538875443,0.18205194,87849.0,87829.0,0.02430206]
[1769538875444,0.05691784,87846.0,87829.0,0.02430206]
[1769538875644,0.32936458,87845.0,87829.0,0.02414496]
[1769538875798,0.05691913,87844.0,87829.0,0.02414496]
[1769538875995,0.03,87844.0,87821.0,8.569e-05]
[1769538876200,0.18909832,87840.0,87821.0,0.02438775]
[1769538876426,0.04159688,87843.0,87822.0,0.16445887]
[1769538876632,0.0569204,87842.0,87823.0,0.16445887]
[1769538876836,0.05692145,87841.0,87824.0,0.02430206]
[1769538877040,0.03,87834.0,87821.0,8.569e-05]
[1769538877264,0.0058844,87838.0,87821.0,8.569e-05]
[1769538877265,0.18909832,87832.0,87821.0,8.569e-05]
[1769538877394,0.18909832,87827.0,87821.0,8.569e-05]
[1769538877598,0.18909832,87827.0,87820.0,0.0004]
[1769538877599,0.03,87821.0,87820.0,0.0004]
[1769538878217,0.03,87821.0,87820.0,0.0002]
[1769538878472,0.18909832,87821.0,87820.0,0.0001]
[1769538878639,0.23647358,87821.0,87820.0,5e-05]
[1769538878837,0.25641405,87821.0,87820.0,5e-05]
[1769538879995,0.08693463,87820.0,87819.0,0.0002]
[1769538880203,0.3409241,87830.0,87807.0,0.0004]
[1769538880204,0.10181545,87817.0,87816.0,5e-05]
[1769538880386,0.20397719,87817.0,87816.0,5e-05]
[1769538880589,0.18909832,87817.0,87816.0,5e-05]
[1769538880791,0.08693694,87817.0,87814.0,4.275e-05]
[1769538881001,0.03,87817.0,87814.0,4.275e-05]
[1769538881210,0.08693769,87816.0,87814.0,4.275e-05]
[1769538881418,0.2460362,87815.0,87814.0,4.275e-05]
[1769538881634,0.22774217,87819.0,87795.0,0.16445887]
[1769538881635,0.03,87811.0,87795.0,0.16445887]
[1769538881842,0.14909832,87811.0,87795.0,0.18619573]
[1769538882045,0.15909832,87817.0,87798.0,0.02430206]
[1769538882254,0.05693496,87820.0,87801.0,0.16445887]
[1769538882456,0.05693572,87819.0,87802.0,0.02430206]
[1769538882686,0.3409241,87830.0,87783.0,0.11696]
[1769538882687,0.03,87820.0,87803.0,0.18333496]
[1769538882926,0.03,87820.0,87807.0,0.16445887]
[1769538883145,0.03,87820.0,87810.0,0.02430206]
[1769538883346,0.03,87820.0,87811.0,0.02430206]
[1769538883792,0.03,87828.0,87812.0,0.16445887]
[1769538883998,0.03,87828.0,87815.0,0.02430206]
[1769538884215,0.03,87828.0,87800.0,0.3409241]
[1769538884216,0.03,87828.0,87818.0,0.16445887]
[1769538884428,0.03,87828.0,87821.0,0.02430206]
[1769538884869,0.03,87836.0,87825.0,0.02430206]
[1769538885079,0.03,87836.0,87827.0,0.16445887]
[1769538885283,0.03,87836.0,87828.0,0.02430206]
[1769538885703,0.0302425,87835.0,87828.0,0.02430206]
[1769538886764,0.04917658,87835.0,87828.0,0.02430206]
[1769538886981,0.04917658,87835.0,87812.0,0.02430206]
[1769538886982,0.03,87832.0,87812.0,0.02430206]
[1769538887196,0.03,87828.0,87813.0,0.16445887]
[1769538887442,0.03,87828.0,87814.0,0.02430206]
[1769538887854,0.03,87828.0,87815.0,0.02430206]
[1769538888062,0.03,87827.0,87815.0,0.02430206]
[1769538888271,0.03,87827.0,87788.0,0.056955]
[1769538888272,0.05460247,87827.0,87802.0,0.16445887]
[1769538888481,0.03,87816.0,87803.0,0.02430206]
[1769538888690,0.05693653,87818.0,87803.0,0.02430206]
[1769538888892,0.17647005,87819.0,87803.0,0.02430206]
[1769538889092,0.0569368,87817.0,87803.0,0.02430206]
[1769538889431,0.05693662,87817.0,87803.0,0.02430206]
[1769538889598,0.03,87817.0,87803.0,0.02430206]
[1769538889799,0.05692919,87829.0,87807.0,0.02430206]
[1769538890184,0.0569301,87827.0,87812.0,0.16445887]
[1769538890358,0.11353222,87826.0,87812.0,0.18876093]
[1769538890603,0.05692953,87828.0,87812.0,0.18876093]
[1769538890784,0.05692953,87828.0,87795.0,0.04091676]
[1769538890785,0.03,87826.0,87813.0,0.02430206]
[1769538891006,0.03,87826.0,87813.0,0.18876093]
[1769538891322,0.05692424,87837.0,87815.0,0.16445887]
[1769538891530,0.11365903,87834.0,87818.0,0.02430206]
[1769538891721,0.11365903,87833.0,87821.0,0.02430206]
[1769538891861,0.14365903,87832.0,87821.0,0.18876093]
[1769538892214,0.03,87832.0,87824.0,0.16445887]
[1769538892504,0.24985942,87848.0,87827.0,0.18876093]
[1769538892846,0.03,87842.0,87827.0,0.18876093]
[1769538893252,0.03,87839.0,87827.0,0.18876093]
[1769538893890,0.0302425,87835.0,87801.0,0.16445887]
[1769538894084,0.03,87833.0,87811.0,0.02430206]
[1769538894283,0.03,87831.0,87813.0,0.022755]
[1769538894619,0.03,87831.0,87817.0,0.022755]
[1769538894826,0.03,87831.0,87819.0,0.022755]
[1769538895151,0.1095508,87835.0,87790.0,0.17155358]
[1769538895152,0.17085002,87828.0,87790.0,0.17155358]
[1769538895280,0.03,87823.0,87805.0,0.17155358]
[1769538895624,0.03,87823.0,87810.0,0.022755]
[1769538895844,0.03,87823.0,87812.0,0.022755]
[1769538896002,0.03,87823.0,87815.0,0.17155358]
[1769538896210,0.03,87832.0,87815.0,0.17155358]
[1769538896413,0.03,87832.0,87814.0,0.022755]
[1769538896414,0.03,87829.0,87816.0,0.022755]
[1769538896731,0.03,87827.0,87819.0,0.17155358]
[1769538896959,0.03,87827.0,87819.0,0.19430858]
[1769538897484,0.03,87827.0,87821.0,0.17155358]
[1769538897695,0.0002425,87835.0,87824.0,0.022755]
[1769538897853,0.03,87837.0,87827.0,0.17155358]
[1769538898055,0.0907611,87850.0,87830.0,0.022755]
[1769538898240,0.05691823,87846.0,87830.0,0.19430858]
[1769538898447,0.05691644,87849.0,87830.0,0.17155358]
[1769538898672,0.14767794,87848.0,87831.0,0.19430858]
[1769538898924,0.0907611,87853.0,87833.0,0.17155358]
[1769538899131,0.03,87852.0,87835.0,0.19430858]
[1769538900075,0.03,87851.0,87837.0,0.17155358]
[1769538900271,0.0003105,87854.0,87840.0,0.022755]
[1769538900475,0.0003105,87854.0,87844.0,0.022755]
[1769538900701,0.0003105,87854.0,87846.0,0.19430858]
[1769538900903,0.0003105,87854.0,87846.0,0.17155358]
[1769538901058,0.0003105,87854.0,87847.0,0.19430858]
[1769538901259,0.0302042,87863.0,87849.0,0.022755]
[1769538901506,0.0302042,87863.0,87850.0,0.19430858]
[1769538902229,0.03,87862.0,87850.0,0.19430858]
[1769538903016,0.03,87855.0,87843.0,0.17155358]
[1769538903883,0.03,87855.0,87822.0,0.04091676]
[1769538903884,0.05691655,87848.0,87817.0,0.17155358]
[1769538904086,0.05691655,87848.0,87816.0,0.04091676]
[1769538904087,0.03,87844.0,87831.0,0.17155358]
[1769538904434,0.03,87844.0,87834.0,0.022755]
[1769538904582,0.03,87844.0,87835.0,0.19430858]
[1769538904786,0.0569103,87858.0,87838.0,0.022755]
[1769538904991,0.03076477,87858.0,87840.0,0.19430858]
[1769538905195,0.03,87857.0,87842.0,0.17155358]
[1769538905396,0.03,87857.0,87845.0,0.022755]
[1769538905582,0.03,87857.0,87847.0,0.022755]
[1769538905782,0.03,87857.0,87848.0,0.17155358]
[1769538906116,0.03,87856.0,87848.0,0.17155358]
[1769538907195,0.057111,87863.0,87848.0,0.17155358]
[1769538907196,0.03,87855.0,87848.0,0.17155358]
[1769538907829,0.0002042,87863.0,87849.0,0.022755]
[1769538908032,0.0002042,87863.0,87850.0,0.19430858]
[1769538908212,0.0002042,87863.0,87850.0,0.17155358]
[1769538908417,0.0002042,87863.0,87852.0,0.17155358]
[1769538909058,0.0302042,87863.0,87852.0,0.17155358]
[1769538910265,0.03,87862.0,87852.0,0.17155358]
[1769538910475,0.02277275,87875.0,87855.0,0.022755]
[1769538910804,0.02277275,87875.0,87840.0,0.3409241]
[1769538910805,0.0003105,87873.0,87860.0,0.17155358]
[1769538911007,0.0003105,87873.0,87862.0,0.19430858]
[1769538911206,0.0003105,87873.0,87862.0,0.17155358]
[1769538911619,0.03,87869.0,87831.0,0.022755]
[1769538911775,0.0003105,87873.0,87848.0,0.022755]
[1769538911776,0.03,87866.0,87848.0,0.022755]
[1769538911980,0.03,87866.0,87849.0,0.19430858]
[1769538912202,0.03,87866.0,87849.0,0.17155358]
[1769538912377,0.03,87866.0,87851.0,0.17155358]
[1769538912820,0.03,87866.0,87851.0,0.19430858]
[1769538913249,0.03,87864.0,87851.0,0.19430858]
[1769538913453,0.03,87864.0,87851.0,0.17155358]
[1769538914229,0.03,87863.0,87851.0,0.17155358]
[1769538915227,0.03,87871.0,87853.0,0.17155358]
[1769538915423,0.03,87871.0,87856.0,0.022755]
[1769538915623,0.03,87871.0,87859.0,0.17155358]
[1769538915823,0.02277275,87879.0,87863.0,0.17155358]
[1769538916034,0.05689619,87880.0,87864.0,0.022755]
[1769538916253,0.05689547,87881.0,87865.0,0.17155358]
[1769538916442,0.03,87878.0,87865.0,0.17155358]
[1769538917447,0.03,87878.0,87865.0,0.16655358]
[1769538917659,0.01815657,87891.0,87865.0,0.16655358]
[1769538917863,0.01815657,87891.0,87868.0,0.022755]
[1769538917864,0.02277275,87890.0,87868.0,0.022755]
[1769538918065,0.05689055,87889.0,87872.0,0.022755]
[1769538918220,0.05689055,87889.0,87873.0,0.17155358]
[1769538918426,0.02277275,87890.0,87873.0,0.19430858]
[1769538918626,0.03,87889.0,87874.0,0.022755]
[1769538918836,0.03,87889.0,87875.0,0.19430858]
[1769538919045,0.03,87889.0,87858.0,0.04091676]
[1769538919046,0.03,87889.0,87876.0,0.022755]
[1769538919047,0.030182,87889.0,87876.0,0.022755]
[1769538919244,0.03,87887.0,87877.0,0.17155358]
[1769538920349,0.03,87886.0,87877.0,0.17155358]
[1769538920562,0.03,87886.0,87872.0,0.17155358]
[1769538921641,0.03,87884.0,87872.0,0.17155358]
[1769538923622,0.03,87883.0,87872.0,0.17155358]
[1769538924715,0.03,87882.0,87872.0,0.17155358]
[1769538925373,0.000182,87888.0,87872.0,0.17155358]
[1769538925575,0.000182,87888.0,87858.0,0.04091676]
[1769538925576,0.05687937,87906.0,87880.0,0.02254602]
[1769538925782,0.05687937,87906.0,87884.0,0.02254602]
[1769538925783,0.03,87904.0,87884.0,0.02254602]
[1769538925999,0.03,87904.0,87887.0,0.16542739]
[1769538926387,0.03,87904.0,87889.0,0.18797341]
[1769538926798,0.03,87902.0,87889.0,0.18797341]
[1769538927413,0.08688162,87902.0,87889.0,0.18797341]
[1769538927626,0.03,87902.0,87889.0,0.18797341]
[1769538927829,0.03,87901.0,87889.0,0.18797341]
[1769538928032,0.03,87901.0,87889.0,0.20677075]
[1769538928239,0.03,87899.0,87861.0,0.16542739]
[1769538928443,0.03,87899.0,87860.0,0.04091676]
[1769538928444,0.03,87892.0,87873.0,0.16542739]
[1769538928653,0.03,87892.0,87876.0,0.02254602]
[1769538928884,0.03,87892.0,87879.0,0.16542739]
[1769538929102,0.03,87892.0,87881.0,0.16542739]
[1769538929323,0.03,87892.0,87881.0,0.18797341]
[1769538929499,0.03,87892.0,87870.0,0.11692]
[1769538929500,0.03,87891.0,87883.0,0.16542739]
[1769538929752,0.03,87891.0,87883.0,0.02254602]
[1769538929970,0.03,87891.0,87884.0,0.16542739]
[1769538930185,0.02487198,87900.0,87884.0,0.16542739]
[1769538930399,0.05688354,87899.0,87884.0,0.18797341]
[1769538930612,0.03,87899.0,87884.0,0.18797341]
[1769538930976,0.03,87892.0,87884.0,0.18797341]
[1769538931981,0.03,87891.0,87884.0,0.18797341]
[1769538932900,0.03,87884.0,87861.0,0.04503453]
[1769538933109,0.03,87884.0,87865.0,0.02254602]
[1769538933317,0.03,87884.0,87868.0,0.16542739]
[1769538933922,0.03,87882.0,87868.0,0.16542739]
[1769538934558,0.03,87882.0,87868.0,0.18797341]
[1769538934913,0.03,87881.0,87868.0,0.18797341]
[1769538935899,0.03,87880.0,87868.0,0.18797341]
[1769538936111,0.05688622,87895.0,87869.0,0.02254602]
[1769538936304,0.05688622,87895.0,87857.0,0.00298164]
[1769538936305,0.11349931,87894.0,87861.0,0.02254602]
[1769538936502,0.0003685,87910.0,87873.0,0.16542739]
[1769538936701,0.0003685,87910.0,87872.0,0.04091676]
[1769538936702,0.02487198,87905.0,87877.0,0.16542739]
[1769538936930,0.03,87901.0,87879.0,0.16542739]
[1769538937281,0.03,87899.0,87881.0,0.16542739]
[1769538937461,0.03,87899.0,87881.0,0.18797341]
[1769538937651,0.05487198,87897.0,87881.0,0.18797341]
[1769538938066,0.05487198,87897.0,87881.0,0.15377967]
[1769538938831,0.03,87895.0,87881.0,0.15377967]
[1769538939033,0.08688615,87895.0,87881.0,0.15377967]
[1769538939423,0.16932356,87909.0,87882.0,0.02254602]
[1769538939623,0.11354536,87908.0,87885.0,0.16542739]
[1769538940733,0.03,87894.0,87871.0,0.16542739]
[1769538940872,0.03,87894.0,87873.0,0.16542739]
[1769538941236,0.03,87894.0,87855.0,0.08423163]
[1769538941237,0.03,87883.0,87855.0,0.02732]
[1769538941375,0.03,87883.0,87864.0,0.02254602]
[1769538941556,0.03,87883.0,87865.0,0.16542739]
[1769538941759,0.03,87883.0,87866.0,0.16542739]
[1769538941960,0.03,87883.0,87869.0,0.02254602]
[1769538942178,0.03,87882.0,87870.0,0.16542739]
[1769538943199,0.03,87884.0,87870.0,0.16542739]
[1769538943382,0.03,87881.0,87870.0,0.16542739]
[1769538944363,0.03,87880.0,87870.0,0.16542739]
[1769538944565,0.03,87880.0,87869.0,0.02254602]
[1769538944974,0.03,87880.0,87869.0,0.18797341]
[1769538945386,0.03,87879.0,87869.0,0.18797341]
[1769538946239,0.03,87884.0,87869.0,0.18797341]
[1769538946809,0.18417807,87890.0,87869.0,0.18797341]
[1769538947349,0.03,87887.0,87869.0,0.18797341]
[1769538948392,0.03,87887.0,87870.0,0.02254602]
[1769538948629,0.03,87887.0,87871.0,0.02254602]
[1769538949158,0.03,87887.0,87862.0,0.11692]
[1769538949159,0.03,87886.0,87872.0,0.02254602]
[1769538949427,0.03,87886.0,87874.0,0.16542739]
[1769538949688,0.05688096,87903.0,87878.0,0.16542739]
[1769538949931,0.05688035,87904.0,87883.0,0.02254602]
[1769538949932,0.11381369,87902.0,87883.0,0.02254602]